bitfinex-derivatives/quotes_SOLF0:USTF0_20220110
["timestamp","ask_amount","ask_price","bid_price","bid_amount"]
[1641777670036,15.37184404,140.98,140.93,15.01409345]
[1641777670239,5.6754933,140.96,140.93,15.01409345]
[1641777671235,5.6754933,140.96,140.91,15.01409345]
[1641777672137,9.6754933,140.96,140.9,27.56642961]
[1641777672337,9.67606418,140.95,140.9,27.56642961]
[1641777672537,18.48906418,140.95,140.9,27.56642961]
[1641777672738,4.0,140.94,140.9,27.56642961]
[1641777672936,4.0,140.94,140.9,17.52481976]
[1641777673138,9.67606418,140.95,140.9,2.51072631]
[1641777673338,5.67606418,140.95,140.9,2.51072631]
[1641777674339,5.67606418,140.95,140.89,15.01409345]
[1641777675242,5.67606418,140.95,140.88,17.52481976]
[1641777678342,27.66479,140.98,140.88,21.52481976]
[1641777678542,52.25392333,140.99,140.89,7.09370788]
[1641777678741,52.25392333,140.99,140.89,52.03880788]
[1641777678943,45.4448,140.99,140.89,56.03880788]
[1641777679543,45.4448,140.99,140.9,17.52481976]
[1641777679942,4.02829512,140.94,140.9,17.52481976]
[1641777680141,4.02829512,140.94,140.9,21.52481976]
[1641777680344,4.02829512,140.94,140.93,55.32958]
[1641777680542,4.02829512,140.94,140.93,61.93258]
[1641777681443,4.02829512,140.94,140.93,64.44330631]
[1641777682949,4.02829512,140.94,140.93,36.77851631]
[1641777683146,4.02829512,140.94,140.93,30.17551631]
[1641777683747,49.4448,140.99,140.93,30.17551631]
[1641777683947,45.4448,140.99,140.93,30.17551631]
[1641777684448,45.4448,140.99,140.94,2.51072631]
[1641777685850,5.67466104,140.98,140.94,2.51072631]
[1641777686651,4.0,140.97,140.94,2.51072631]
[1641777686851,9.67466104,140.98,140.94,2.51072631]
[1641777687450,5.67553857,140.96,140.94,2.51072631]
[1641777687651,9.67553857,140.96,140.94,2.51072631]
[1641777687852,5.67553857,140.96,140.94,2.631e-05]
[1641777688054,5.67553857,140.96,140.93,3.41321221]
[1641777691156,5.67553857,140.96,140.9,55.32958]
[1641777691856,5.67553857,140.96,140.95,3.41375086]
[1641777692056,5.67553857,140.96,140.95,12.30775086]
[1641777692556,50.84853968,141.01,140.95,12.30775086]
[1641777692757,15.01409345,141.01,140.95,12.30775086]
[1641777693457,45.1205,141.03,140.95,12.30775086]
[1641777694659,45.1205,141.03,140.97,27.66479]
[1641777698063,4.0,140.99,140.95,3.41368334]
[1641777698267,11.944,140.99,140.95,3.41368334]
[1641777698463,5.67482166,140.98,140.95,3.41368334]
[1641777698863,9.67482166,140.98,140.95,3.41368334]
[1641777699764,4.0,140.97,140.91,59.15949345]
[1641777699967,60.55344403,140.98,140.91,15.01409345]
[1641777700165,5.67560181,140.96,140.91,15.01409345]
[1641777700366,12.92060181,140.96,140.91,15.01409345]
[1641777700566,5.6760944,140.95,140.91,15.01409345]
[1641777703355,33.34041367,140.96,140.88,27.66479]
[1641777703553,37.34041367,140.96,140.88,27.66479]
[1641777704454,33.34041367,140.96,140.88,27.66479]
[1641777704655,33.34041367,140.96,140.88,34.23879]
[1641777705656,34.47397549,140.99,140.89,4.0]
[1641777705858,15.01409345,141.0,140.91,4.0]
[1641777706056,15.01409345,141.0,140.91,9.908]
[1641777706256,46.6302,141.01,140.91,24.92209345]
[1641777706657,46.6302,141.01,140.91,20.92209345]
[1641777706857,74.29499,141.01,140.91,48.58688345]
[1641777707557,4.02861702,140.95,140.91,48.58688345]
[1641777707957,4.02861702,140.95,140.91,37.57279]
[1641777708157,4.02861702,140.95,140.91,33.57279]
[1641777708360,74.29499,141.01,140.91,37.57279]
[1641777708561,48.35174148,141.03,140.93,4.0]
[1641777708762,48.35174148,141.03,140.96,27.66479]
[1641777708962,20.68695148,141.03,140.96,35.25979]
[1641777709263,15.01409345,141.03,140.96,35.25979]
[1641777709462,45.136,141.04,140.96,35.25979]
[1641777709663,8.16764796,141.05,140.96,39.25979]
[1641777709862,136.89828345,141.06,140.96,39.25979]
[1641777710063,136.89828345,141.06,140.96,35.25979]
[1641777710264,4.0,141.04,140.96,35.25979]
[1641777710465,4.0,141.04,140.96,27.66479]
[1641777710665,9.335,141.05,140.96,27.66479]
[1641777711265,4.02768426,141.0,140.96,27.66479]
[1641777713171,4.02768426,141.0,140.93,26.10578907]
[1641777713671,4.02768426,141.0,140.97,27.66479]
[1641777714871,27.66479,141.04,140.97,27.66479]
[1641777715271,4.02695317,140.99,140.97,31.07729852]
[1641777716173,13.48995317,140.99,140.97,3.41250852]
[1641777716373,5.67469151,140.98,140.97,3.41250852]
[1641777718574,5.67469151,140.98,140.97,8.52e-06]
[1641777719175,5.67469151,140.98,140.92,27.66479]
[1641777719376,9.67469151,140.98,140.92,27.66479]
[1641777719575,4.0,140.97,140.92,27.66479]
[1641777719776,31.66479,140.93,140.88,15.01409345]
[1641777719975,36.18879,140.93,140.88,15.01409345]
[1641777720376,8.524,140.93,140.88,15.01409345]
[1641777720579,8.524,140.93,140.85,70.02276625]
[1641777721078,5.67624019,140.94,140.85,70.02276625]
[1641777721578,44.4746,140.95,140.85,74.02276625]
[1641777721778,18.44738717,140.98,140.9,27.66479]
[1641777721981,18.44738717,140.98,140.9,35.69379]
[1641777722581,7.43329372,140.98,140.9,35.69379]
[1641777722781,4.0,140.96,140.9,8.029]
[1641777722985,10.178,140.96,140.88,42.67888345]
[1641777723181,5.67635161,140.94,140.88,15.01409345]
[1641777723382,9.67635161,140.94,140.86,15.01409345]
[1641777723582,4.0,140.93,140.86,15.01409345]
[1641777723786,27.66479,140.9,140.86,15.01409345]
[1641777723984,4.0,140.89,140.86,15.01409345]
[1641777724285,42.43068613,140.9,140.86,15.01409345]
[1641777724483,42.43068613,140.9,140.83,25.04370167]
[1641777724884,46.43068613,140.9,140.83,25.04370167]
[1641777725085,4.0,140.89,140.83,25.04370167]
[1641777725386,4.0,140.87,140.83,15.01409345]
[1641777725585,4.0,140.84,140.8,15.01409345]
[1641777725786,27.66479,140.85,140.8,15.01409345]
[1641777726786,27.66479,140.85,140.77,27.66479]
[1641777728190,37.34461245,140.85,140.77,27.66479]
[1641777728390,33.34461245,140.85,140.77,31.66479]
[1641777728592,33.34461245,140.85,140.78,2.49892604]
[1641777730999,4.03166734,140.84,140.78,2.49892604]
[1641777731197,4.03166734,140.84,140.78,11.56492604]
[1641777731399,4.03166734,140.84,140.78,9.066]
[1641777731997,4.03166734,140.84,140.8,27.66479]
[1641777733197,6.734e-05,140.84,140.8,38.76302964]
[1641777733399,6.81399268,140.89,140.8,34.76302964]
[1641777733599,6.81399268,140.89,140.8,38.76302964]
[1641777733798,6.81399268,140.89,140.81,4.0]
[1641777734001,10.81399268,140.89,140.84,27.66479]
[1641777734200,9.67865162,140.88,140.81,6.1]
[1641777734399,9.67865162,140.88,140.77,15.01409345]
[1641777734599,4.0,140.87,140.77,15.01409345]
[1641777734799,53.41335162,140.88,140.77,15.01409345]
[1641777735001,53.41335162,140.88,140.79,3.60167352]
[1641777736002,31.66479,140.87,140.8,27.66479]
[1641777736504,4.0,140.86,140.79,3.60167352]
[1641777739004,4.0,140.86,140.77,55.32958]
[1641777739203,4.0,140.86,140.8,4.03128391]
[1641777740304,4.0,140.85,140.8,4.03128391]
[1641777740504,4.0,140.84,140.8,4.03128391]
[1641777741005,5.68132131,140.82,140.8,4.03128391]
[1641777741205,15.11432131,140.82,140.8,8.391e-05]
[1641777741507,4.0,140.81,140.73,15.01409345]
[1641777741704,4.0,140.8,140.72,7.10227273]
[1641777741904,27.66479,140.79,140.72,7.10227273]
[1641777742606,27.66479,140.79,140.71,61.72059345]
[1641777742806,27.66479,140.79,140.71,46.7065]
[1641777743207,27.66479,140.79,140.7,27.66479]
[1641777743406,27.66479,140.79,140.7,31.66479]
[1641777743808,27.66479,140.79,140.71,2.49185119]
[1641777744010,4.0,140.78,140.71,8.56985119]
[1641777744210,37.34709035,140.79,140.71,8.56985119]
[1641777744410,33.34709035,140.79,140.71,8.56985119]
[1641777744610,37.34715518,140.79,140.71,8.56985119]
[1641777744814,37.34715518,140.79,140.71,6.078]
[1641777745611,5.68326226,140.77,140.71,6.078]
[1641777745816,9.68326226,140.77,140.68,27.66479]
[1641777746012,27.66479,140.7,140.65,65.55829889]
[1641777746212,36.02079,140.7,140.65,22.11989889]
[1641777747014,36.02079,140.7,140.65,7.10580544]
[1641777749119,49.6121,140.73,140.65,15.00480544]
[1641777749519,4.0,140.72,140.65,15.00480544]
[1641777749718,9.68533906,140.72,140.65,7.10580544]
[1641777750018,27.66479,140.7,140.65,7.10580544]
[1641777750918,33.35067865,140.7,140.65,7.10580544]
[1641777752720,33.35067865,140.7,140.66,2.49902533]
[1641777755125,5.68588865,140.7,140.66,7.146]
[1641777755323,4.03470616,140.71,140.66,11.146]
[1641777755525,4.03470616,140.71,140.67,11.10454336]
[1641777755726,4.03470616,140.71,140.66,11.146]
[1641777756024,5.68368432,140.76,140.66,11.146]
[1641777756224,5.68368432,140.76,140.69,27.66479]
[1641777756623,9.68368432,140.76,140.69,27.66479]
[1641777756826,9.68368432,140.76,140.67,2.49902533]
[1641777756827,9.68368432,140.76,140.65,58.66319345]
[1641777757024,18.55668432,140.76,140.65,62.66319345]
[1641777757324,4.0,140.75,140.65,58.66319345]
[1641777757523,14.55668432,140.76,140.65,58.66319345]
[1641777757524,9.68444923,140.74,140.65,58.66319345]
[1641777757724,9.68444923,140.74,140.66,2.49902533]
[1641777757925,5.6852482,140.72,140.66,2.49902533]
[1641777758128,13.6852482,140.72,140.66,2.49902533]
[1641777758827,13.6852482,140.72,140.67,3.60546779]
[1641777760429,19.37061376,140.72,140.67,3.60546779]
[1641777761029,5.68658249,140.69,140.67,3.60546779]
[1641777761229,4.0,140.68,140.62,15.01409345]
[1641777761430,5.6873799,140.67,140.62,15.01409345]
[1641777762235,33.3521699,140.67,140.6,30.16231889]
[1641777763531,33.3521699,140.67,140.61,2.49752889]
[1641777763733,33.3521699,140.67,140.61,9.94452889]
[1641777764133,5.6873799,140.67,140.61,9.94452889]
[1641777765036,5.6873799,140.67,140.61,7.447]
[1641777766236,4.0,140.66,140.61,7.447]
[1641777766436,5.6873799,140.67,140.61,7.447]
[1641777767037,11.37479747,140.67,140.61,7.447]
[1641777769139,4.03611489,140.66,140.58,105.08738]
[1641777770641,4.03611489,140.66,140.59,2.50270618]
[1641777771042,5.68806931,140.65,140.59,2.50270618]
[1641777773441,9.72472673,140.65,140.59,2.50270618]
[1641777773640,9.72472673,140.65,140.59,30.16749618]
[1641777774643,9.72472673,140.65,140.6,17.51679963]
[1641777775546,9.72472673,140.65,140.6,23.26279963]
[1641777776142,9.72472673,140.65,140.61,2.50270618]
[1641777777045,9.72472673,140.65,140.61,17.51679963]
[1641777777445,5.68806931,140.65,140.61,17.51679963]
[1641777779045,5.68806931,140.65,140.61,2.50270618]
[1641777782352,5.68806931,140.65,140.62,2.79235749]
[1641777783453,4.03664151,140.64,140.62,2.79235749]
[1641777786461,4.03664151,140.64,140.59,25.05055285]
[1641777786659,4.03664151,140.64,140.62,2.79281076]
[1641777787259,4.03664151,140.64,140.63,2.51301836]
[1641777787461,33.35285931,140.65,140.6,15.01409345]
[1641777788259,4.03670857,140.63,140.6,15.01409345]
[1641777788459,9.72541065,140.63,140.6,15.01409345]
[1641777788659,9.72541065,140.63,140.59,25.05055285]
[1641777789360,9.72541065,140.63,140.59,15.01409345]
[1641777790762,9.72541065,140.63,140.6,2.79270826]
[1641777790961,9.72541065,140.63,140.6,17.80680171]
[1641777792061,5.68870208,140.63,140.6,17.80680171]
[1641777792467,4.03723345,140.62,140.6,17.80680171]
[1641777793662,4.03723345,140.62,140.6,2.79270826]
[1641777794361,4.03723345,140.62,140.6,17.80680171]
[1641777794563,4.03723345,140.62,140.6,15.01409345]
[1641777794761,4.03723345,140.62,140.6,17.24852701]
[1641777796368,46.8584,140.67,140.6,17.24852701]
[1641777796565,46.8584,140.67,140.61,27.66479]
[1641777797466,46.8584,140.67,140.62,15.01409345]
[1641777798472,5.68796163,140.65,140.62,15.01409345]
[1641777798669,41.95075163,140.65,140.62,15.01409345]
[1641777799369,41.95075163,140.65,140.61,2.2065402]
[1641777801073,41.95075163,140.65,140.61,17.22063365]
[1641777801871,41.95075163,140.65,140.61,2.2065402]
[1641777802473,41.95075163,140.65,140.6,15.01409345]
[1641777803175,41.95075163,140.65,140.63,2.2065199]
[1641777803374,14.28596163,140.65,140.63,2.2065199]
[1641777804778,27.66479,140.64,140.61,15.01409345]
[1641777804979,31.70168333,140.64,140.6,15.01409345]
[1641777806082,35.70168333,140.64,140.58,15.01409345]
[1641777806281,5.68891915,140.63,140.58,15.01409345]
[1641777806682,27.66479,140.61,140.58,15.01409345]
[1641777806881,5.68997266,140.6,140.58,15.01409345]
[1641777807282,5.68997266,140.6,140.56,10.0364594]
[1641777808985,5.68997266,140.6,140.52,43.8879]
[1641777809787,5.68997266,140.6,140.53,10.06157402]
[1641777811694,5.68997266,140.6,140.53,14.06157402]
[1641777811890,5.68997266,140.6,140.53,10.06157402]
[1641777812091,5.68997266,140.6,140.53,14.06157402]
[1641777812493,10.86383704,140.63,140.53,10.06157402]
[1641777812692,10.86383704,140.63,140.56,27.66479]
[1641777812892,70.93849,140.64,140.56,39.60779]
[1641777813297,27.66479,140.64,140.56,35.60779]
[1641777813492,4.03867683,140.59,140.56,49.66936402]
[1641777813694,4.03867683,140.59,140.56,45.66936402]
[1641777813892,11.92767683,140.59,140.56,37.72636402]
[1641777814292,11.92767683,140.59,140.56,27.66479]
[1641777816095,11.92767683,140.59,140.55,10.04854065]
[1641777816697,11.92767683,140.59,140.53,14.04854065]
[1641777816897,11.92767683,140.59,140.54,4.0]
[1641777817397,7.889,140.59,140.54,4.0]
[1641777819102,27.66479,140.61,140.54,4.0]
[1641777820003,4.03810961,140.58,140.54,4.0]
[1641777820203,11.97210961,140.58,140.54,4.0]
[1641777820908,11.97210961,140.58,140.55,4.0]
[1641777821106,11.97210961,140.58,140.55,31.66479]
[1641777821904,4.03810961,140.58,140.56,10.04854065]
[1641777822306,6.82523626,140.66,140.57,4.0]
[1641777822505,6.82523626,140.66,140.58,4.0]
[1641777823206,6.82523626,140.66,140.6,27.66479]
[1641777824806,10.82523626,140.66,140.59,10.04854065]
[1641777825008,16.25223626,140.66,140.56,39.54629395]
[1641777825206,5.68872825,140.63,140.56,39.54629395]
[1641777825411,5.68914609,140.62,140.56,39.54629395]
[1641777825712,5.68914609,140.62,140.56,10.04865799]
[1641777827211,5.68914609,140.62,140.59,1.78331375]
[1641777828418,5.68914609,140.62,140.6,2.51235354]
[1641777831218,4.0378783,140.61,140.6,4.25630689]
[1641777831820,4.0378783,140.61,140.6,1.74395335]
[1641777832623,11.2798783,140.61,140.6,1.74395335]
[1641777834522,4.0378783,140.61,140.6,1.74395335]
[1641777834821,4.0378783,140.61,140.6,4.26024094]
[1641777835321,4.03784184,140.61,140.6,5.10821491]
[1641777838929,12.18984184,140.61,140.6,5.10821491]
[1641777839131,8.152,140.61,140.6,2.51628759]
[1641777839730,12.18955136,140.61,140.6,5.10796204]
[1641777840230,12.18955136,140.61,140.6,2.59167445]
[1641777843542,4.03755136,140.61,140.6,2.59167445]
[1641777843734,58.78961747,140.65,140.57,4.0]
[1641777844334,4.03788211,140.61,140.6,2.59200198]
[1641777845236,10.83188211,140.61,140.6,2.59200198]
[1641777846040,10.83188211,140.61,140.6,5.10934817]
[1641777846743,4.03788211,140.61,140.6,5.10934817]
[1641777847238,12.03288211,140.61,140.6,5.10934817]
[1641777848139,7.995,140.61,140.6,2.51734619]
[1641777848339,12.03258573,140.61,140.6,5.10905469]
[1641777851946,7.995,140.61,140.6,2.51734619]
[1641777852143,12.03286971,140.61,140.6,5.10933591]
[1641777852343,4.03786971,140.61,140.6,5.10933591]
[1641777852543,4.03786971,140.61,140.6,9.10933591]
[1641777853145,4.03786971,140.61,140.6,5.10933591]
[1641777853546,6.971e-05,140.61,140.6,5.10933591]
[1641777853948,6.971e-05,140.61,140.6,20.20495338]
[1641777854750,6.971e-05,140.61,140.6,5.10933591]
[1641777856052,43.694,140.65,140.6,2.51734619]
[1641777856454,4.03739629,140.61,140.6,2.59152067]
[1641777857654,4.03739629,140.61,140.6,5.10886686]
[1641777858255,12.31139629,140.61,140.6,5.10886686]
[1641777859355,4.03739629,140.61,140.6,5.10886686]
[1641777860154,43.694,140.65,140.6,2.51734619]
[1641777860354,43.694,140.65,140.6,5.10870868]
[1641777860554,6.82454745,140.67,140.6,17.03970868]
[1641777860755,15.09561747,140.68,140.63,4.0]
[1641777860955,15.09561747,140.69,140.64,4.0]
[1641777861156,15.09561747,140.69,140.63,12.186]
[1641777861658,15.09561747,140.69,140.63,8.186]
[1641777862057,6.82329502,140.7,140.64,2.51734619]
[1641777862257,27.66479,140.69,140.64,2.51734619]
[1641777862857,33.41679,140.69,140.64,2.51734619]
[1641777863358,5.68691968,140.68,140.62,27.68312738]
[1641777863563,9.68772972,140.66,140.62,27.68312738]
[1641777863759,17.59472972,140.66,140.62,27.68312738]
[1641777863961,13.59472972,140.66,140.62,27.68312738]
[1641777864158,13.59472972,140.66,140.62,15.09561747]
[1641777864358,27.66479,140.64,140.6,2.59136249]
[1641777864558,2.5152222,140.65,140.6,4.0]
[1641777864758,4.03712271,140.64,140.61,3.4489585]
[1641777864959,4.03712271,140.64,140.62,4.0]
[1641777865159,15.09561747,140.68,140.62,8.595]
[1641777865359,15.09561747,140.7,140.62,12.595]
[1641777865759,15.09561747,140.7,140.63,4.0]
[1641777866464,5.68572899,140.71,140.64,27.66479]
[1641777866661,5.68572899,140.71,140.64,31.66479]
[1641777869068,5.68572899,140.71,140.64,27.66479]
[1641777870267,3.41301678,140.69,140.64,27.66479]
[1641777870473,31.07780678,140.69,140.64,27.66479]
[1641777873174,31.07780678,140.69,140.65,4.03595149]
[1641777873772,3.41301678,140.69,140.65,4.03595149]
[1641777873973,13.09942068,140.69,140.65,4.03595149]
[1641777874274,5.68763943,140.66,140.62,15.09561747]
[1641777874471,27.66479,140.64,140.62,15.09561747]
[1641777874671,33.35315206,140.64,140.58,59.30551747]
[1641777875073,33.35315206,140.64,140.58,15.09561747]
[1641777875272,5.68870828,140.63,140.58,15.09561747]
[1641777875474,14.47070828,140.63,140.58,15.09561747]
[1641777875674,14.47070828,140.63,140.57,27.66479]
[1641777878676,14.47070828,140.63,140.56,15.08854402]
[1641777879078,14.47070828,140.63,140.56,19.08854402]
[1641777879277,14.47070828,140.63,140.56,15.08854402]
[1641777880678,27.66479,140.61,140.56,15.08854402]
[1641777882984,3.4145452,140.62,140.56,15.08854402]
[1641777883687,3.4145452,140.62,140.55,49.87126575]
[1641777884085,3.4145452,140.62,140.55,34.77564828]
[1641777885492,3.4145452,140.62,140.55,38.77564828]
[1641777885687,3.4145452,140.62,140.55,34.77564828]
[1641777885893,11.8145452,140.62,140.55,49.87126575]
[1641777886790,4.03781329,140.6,140.55,49.87126575]
[1641777887292,4.03781329,140.6,140.55,34.77564828]
[1641777890493,4.03781329,140.6,140.55,38.77564828]
[1641777890694,5.68906355,140.63,140.55,38.77564828]
[1641777891093,43.6682,140.65,140.55,46.55164828]
[1641777891295,43.6682,140.65,140.56,1.778]
[1641777891495,43.6682,140.65,140.55,59.42526575]
[1641777891696,43.6682,140.65,140.55,57.64726575]
[1641777891697,49.35612338,140.65,140.55,57.64726575]
[1641777891996,49.35612338,140.65,140.55,61.64726575]
[1641777892397,49.35612338,140.65,140.56,4.0]
[1641777892597,49.35612338,140.65,140.57,4.0]
[1641777892998,27.66479,140.63,140.56,7.44988194]
[1641777893199,27.66479,140.63,140.56,3.44988194]
[1641777893399,49.35612338,140.65,140.56,3.44988194]
[1641777894098,49.35612338,140.65,140.56,7.44988194]
[1641777894298,49.35612338,140.65,140.57,4.0]
[1641777894500,49.35612338,140.65,140.56,7.44988194]
[1641777894698,4.0375234,140.62,140.56,7.44988194]
[1641777894999,4.0375234,140.62,140.6,27.66479]
[1641777895201,4.0375234,140.62,140.6,35.24379]
[1641777895400,45.3421,140.68,140.6,35.24379]
[1641777895599,45.3421,140.68,140.6,39.24379]
[1641777895801,45.3421,140.68,140.61,4.0]
[1641777896000,45.3421,140.68,140.6,31.66479]
[1641777896201,45.3421,140.68,140.61,4.0]
[1641777896202,54.7161,140.68,140.61,4.0]
[1641777896702,54.7161,140.68,140.6,31.66479]
[1641777897102,54.7161,140.68,140.6,59.32958]
[1641777899003,54.7161,140.68,140.6,55.32958]
[1641777899303,4.0,140.67,140.6,27.66479]
[1641777899505,9.68734829,140.67,140.6,27.66479]
[1641777900104,13.72391815,140.67,140.6,27.66479]
[1641777900306,4.0,140.66,140.6,27.66479]
[1641777900706,13.72391815,140.67,140.6,27.66479]
[1641777901305,9.72391815,140.67,140.6,27.66479]
[1641777901507,9.72391815,140.67,140.61,3.85251125]
[1641777901907,4.03656986,140.67,140.61,7.85251125]
[1641777902308,4.03656986,140.67,140.61,3.85251125]
[1641777902505,4.03656986,140.67,140.61,7.85251125]
[1641777902706,4.03656986,140.67,140.62,4.0]
[1641777903115,4.03656986,140.67,140.64,27.66479]
[1641777904509,6.82347843,140.7,140.64,27.66479]
[1641777904911,3.81794805,140.65,140.64,27.66479]
[1641777905811,3.81794805,140.65,140.64,30.17861322]
[1641777906110,12.92494805,140.65,140.64,30.17861322]
[1641777906514,12.92494805,140.65,140.64,2.51382322]
[1641777907111,3.81794805,140.65,140.64,2.51382322]
[1641777907711,3.81794805,140.65,140.62,4.0366094]
[1641777907912,3.81794805,140.65,140.62,8.0366094]
[1641777908313,3.81794805,140.65,140.62,4.0366094]
[1641777908514,3.81794805,140.65,140.63,2.51236968]
[1641777909416,27.66479,140.68,140.63,2.51236968]
[1641777909616,3.41315419,140.65,140.63,2.51236968]
[1641777909814,9.14515419,140.65,140.63,2.51236968]
[1641777910115,9.14515419,140.65,140.62,4.0366094]
[1641777910717,9.14515419,140.65,140.6,27.66479]
[1641777911321,3.41315419,140.65,140.64,4.03699983]
[1641777913922,45.416,140.67,140.64,4.03699983]
[1641777914121,33.35177237,140.68,140.64,4.03699983]
[1641777915623,33.35177237,140.68,140.6,27.66479]
[1641777915822,33.35177237,140.68,140.61,4.03681845]
[1641777916423,2.51445789,140.67,140.61,4.03681845]
[1641777917123,2.51445789,140.67,140.62,2.51480675]
[1641777918526,2.51445789,140.67,140.61,4.03681845]
[1641777918726,5.68763032,140.66,140.61,4.03681845]
[1641777918924,9.68763032,140.66,140.61,4.03681845]
[1641777919125,5.68864373,140.64,140.61,4.03681845]
[1641777919326,5.68927228,140.62,140.61,4.03681845]
[1641777919527,33.35406228,140.62,140.58,15.09561747]
[1641777919725,33.35406228,140.62,140.61,4.03707204]
[1641777919929,33.35406228,140.62,140.58,15.09561747]
[1641777920328,33.35406228,140.62,140.56,2.5165967]
[1641777921526,61.01885228,140.62,140.56,2.5165967]
[1641777925035,61.01885228,140.62,140.57,3.04667299]
[1641777926638,5.6899808,140.6,140.57,3.04667299]
[1641777926838,11.9999808,140.6,140.57,3.04667299]
[1641777927237,5.69039812,140.59,140.57,3.04667299]
[1641777927437,5.69039812,140.59,140.53,15.09561747]
[1641777927638,33.35603232,140.57,140.53,15.09561747]
[1641777927837,41.76403232,140.57,140.53,15.09561747]
[1641777928239,45.76403232,140.57,140.53,15.09561747]
[1641777928438,5.69205375,140.55,140.53,15.09561747]
[1641777928640,9.69205375,140.55,140.53,2.51112702]
[1641777928840,5.69205375,140.55,140.53,2.51112702]
[1641777929043,9.69205375,140.55,140.53,2.51112702]
[1641777929444,4.0,140.54,140.5,15.09561747]
[1641777929642,27.66479,140.51,140.5,15.09561747]
[1641777929842,34.57479,140.51,140.47,42.05784305]
[1641777930041,34.57479,140.51,140.47,2.5115491]
[1641777931043,34.57479,140.51,140.46,15.09561747]
[1641777931244,34.57479,140.51,140.45,7.11591831]
[1641777932644,27.66479,140.51,140.45,11.11591831]
[1641777932844,49.12801512,140.56,140.45,11.11591831]
[1641777933049,49.12801512,140.56,140.46,4.0]
[1641777933247,49.12801512,140.56,140.47,1.778]
[1641777933748,4.04046894,140.53,140.46,1.778]
[1641777934547,4.04046894,140.53,140.46,5.778]
[1641777934747,4.04046894,140.53,140.46,1.778]
[1641777934951,4.04046894,140.53,140.46,4.0]
[1641777935747,4.04046894,140.53,140.47,27.66479]
[1641777937352,4.04046894,140.53,140.45,13.58791831]
[1641777937751,31.70492472,140.52,140.45,13.58791831]
[1641777939151,31.70492472,140.52,140.46,4.0]
[1641777940252,31.70492472,140.52,140.47,4.0]
[1641777940452,31.70492472,140.52,140.46,4.0]
[1641777941054,31.70492472,140.52,140.45,13.58791831]
[1641777941554,27.66479,140.52,140.45,13.58791831]
[1641777942154,4.04078998,140.51,140.45,13.58791831]
[1641777942755,4.04078998,140.51,140.45,17.58791831]
[1641777944756,4.04078998,140.51,140.45,13.58791831]
[1641777944957,4.04078998,140.51,140.45,7.11591831]
[1641777945158,4.04078998,140.51,140.46,1.95515864]
[1641777945658,27.66479,140.52,140.46,1.95515864]
[1641777946057,4.04072118,140.5,140.46,1.95515864]
[1641777948961,4.04072118,140.5,140.46,1.95542358]
[1641777949863,18.42752264,140.51,140.46,1.95542358]
[1641777951263,9.73452264,140.51,140.46,1.95542358]
[1641777951465,4.04089904,140.51,140.46,1.95542358]
[1641777951666,4.04089904,140.51,140.46,8.32542358]
[1641777952068,4.04089904,140.51,140.46,35.99021358]
[1641777952666,4.04089904,140.51,140.46,34.03479]
[1641777953265,4.04089904,140.51,140.47,1.95542025]
[1641777953765,45.5607,140.52,140.47,1.95542025]
[1641777954166,4.04100458,140.5,140.47,1.95542025]
[1641777957271,4.04100458,140.5,140.46,42.76040747]
[1641777957672,4.04100458,140.5,140.47,15.09561747]
[1641777957871,4.04100458,140.5,140.48,1.95529003]
[1641777958071,77.70844842,140.54,140.48,1.95529003]
[1641777958273,4.04075481,140.51,140.48,1.95529003]
[1641777961275,4.04075481,140.51,140.48,27.11912996]
[1641777961675,4.04075481,140.51,140.49,1.95503461]
[1641777961876,50.04365842,140.54,140.49,1.95503461]
[1641777962176,4.04051345,140.5,140.49,1.95503461]
[1641777963481,10.69551345,140.5,140.49,1.95503461]
[1641777965481,10.69551345,140.5,140.48,25.18283026]
[1641777965881,6.655,140.5,140.48,25.18283026]
[1641777966382,10.69559108,140.5,140.48,25.18283026]
[1641777966681,10.69559108,140.5,140.48,15.09561747]
[1641777967783,4.04059108,140.5,140.48,15.09561747]
[1641777969984,70.87749,140.54,140.48,15.09561747]
[1641777970690,2.5232342,140.53,140.48,15.09561747]
[1641777971388,76.79749,140.54,140.48,15.09561747]
[1641777972290,2.52313405,140.53,140.48,15.09561747]
[1641777973191,10.34013405,140.53,140.48,15.09561747]
[1641777973892,11.817,140.53,140.48,15.09561747]
[1641777974092,31.66479,140.51,140.48,15.09561747]
[1641777974293,33.35835076,140.51,140.48,15.09561747]
[1641777974794,33.35835076,140.51,140.46,17.61824789]
[1641777975794,27.66479,140.51,140.46,17.61824789]
[1641777977094,4.04047237,140.53,140.46,17.61824789]
[1641777977895,65.13921935,140.54,140.46,17.61824789]
[1641777978101,4.04119905,140.5,140.46,15.09561747]